bitfinex/quotes_ETHUSD_20240701
["timestamp","ask_amount","ask_price","bid_price","bid_amount"]
[1719819929779,0.22613483,3496.1,3496.0,3.1466]
[1719819930465,0.22613483,3496.1,3496.0,0.803]
[1719819932753,0.22613483,3496.1,3495.8,2.3417]
[1719819933093,3.08654483,3496.0,3495.3,9.7439]
[1719819933286,0.22613483,3495.9,3495.6,0.803]
[1719819933645,0.22613483,3495.9,3495.3,7.32]
[1719819933646,2.86064,3495.8,3495.3,7.32]
[1719819933852,2.86064,3495.8,3495.7,0.803]
[1719819934060,3.08679566,3495.8,3495.7,0.803]
[1719819935249,2.86064,3495.8,3495.7,0.803]
[1719819936569,2.86051,3495.9,3495.7,0.803]
[1719819938054,2.86023,3496.3,3495.7,3.66364]
[1719819938258,5.353,3496.5,3495.7,3.66364]
[1719819938259,0.22612554,3496.2,3496.0,0.803]
[1719819938585,0.22612554,3496.1,3496.0,0.803]
[1719819941781,0.22612554,3496.1,3495.5,2.86077]
[1719819942060,0.22612554,3496.0,3495.8,0.803]
[1719819942278,2.86024,3496.2,3495.8,0.803]
[1719819942477,0.22619424,3496.1,3495.8,0.803]
[1719819942677,0.22619424,3496.0,3495.8,0.803]
[1719819942884,2.86024,3496.2,3495.8,0.803]
[1719819943059,0.22619129,3496.1,3495.8,0.803]
[1719819943259,0.22619129,3496.0,3495.8,0.803]
[1719819943593,2.86024,3496.2,3495.8,0.803]
[1719819943787,0.22618247,3496.1,3495.8,0.803]
[1719819943997,0.22618247,3496.0,3495.8,0.803]
[1719819944163,2.86024,3496.2,3495.8,0.803]
[1719819944369,0.22618082,3496.1,3495.8,0.803]
[1719819944579,2.86024,3496.2,3495.8,0.803]
[1719819944755,0.22614658,3496.1,3495.8,0.803]
[1719819944956,2.86024,3496.2,3495.8,0.803]
[1719819945156,0.22614787,3496.1,3495.8,0.803]
[1719819945456,2.86024,3496.2,3495.8,0.803]
[1719819945657,0.22615932,3496.1,3495.8,0.803]
[1719819945857,2.86024,3496.2,3495.8,0.803]
[1719819946059,0.22615739,3496.1,3495.8,0.803]
[1719819946357,2.86024,3496.2,3495.8,0.803]
[1719819946557,0.22615747,3496.1,3495.8,0.803]
[1719819946852,2.86024,3496.2,3495.8,0.803]
[1719819947052,0.22615773,3496.1,3495.8,0.803]
[1719819947283,2.86024,3496.2,3495.8,0.803]
[1719819947494,0.2261578,3496.1,3495.8,0.803]
[1719819947693,2.86024,3496.2,3495.8,0.803]
[1719819947873,0.22615856,3496.1,3495.8,0.803]
[1719819948075,2.86024,3496.2,3495.8,0.803]
[1719819948370,0.22615885,3496.1,3495.8,0.803]
[1719819948570,2.86024,3496.2,3495.8,0.803]
[1719819948792,0.22616317,3496.1,3495.8,0.803]
[1719819949099,2.86024,3496.2,3495.8,0.803]
[1719819949273,0.22615821,3496.1,3495.8,0.803]
[1719819949597,2.86024,3496.2,3495.8,0.803]
[1719819949784,0.226162,3496.1,3495.8,0.803]
[1719819949957,2.86024,3496.2,3495.8,0.803]
[1719819950157,0.22616332,3496.1,3495.8,0.803]
[1719819950366,2.86024,3496.2,3495.8,0.803]
[1719819950589,0.22615789,3496.1,3495.8,0.803]
[1719819950789,2.86024,3496.2,3495.8,0.803]
[1719819950962,0.22615439,3496.1,3495.8,0.803]
[1719819951175,2.86024,3496.2,3496.0,0.803]
[1719819951374,0.22615286,3496.1,3496.0,0.803]
[1719819952369,2.4489,3496.7,3496.0,0.803]
[1719819952569,2.4489,3496.7,3495.9,2.3442]
[1719819952570,0.22614134,3496.6,3496.3,0.803]
[1719819952770,2.86008,3496.4,3496.3,0.803]
[1719819953000,3.08622134,3496.4,3496.3,0.803]
[1719819954705,3.08622134,3496.4,3496.1,0.803]
[1719819955008,0.22614134,3496.3,3496.1,0.803]
[1719819955211,2.86008,3496.4,3495.9,0.803]
[1719819955432,0.22612108,3496.3,3495.9,0.803]
[1719819955704,2.86008,3496.4,3495.9,0.803]
[1719819955895,0.22612207,3496.3,3495.9,0.803]
[1719819956211,2.86008,3496.4,3495.9,0.803]
[1719819956369,5.53590608,3496.3,3495.9,0.803]
[1719819956572,5.30977,3496.3,3495.9,0.803]
[1719819957187,2.86008,3496.4,3495.9,0.803]
[1719819957505,3.08631335,3496.3,3496.1,0.803]
[1719819957813,2.86016,3496.3,3495.9,0.803]
[1719819961217,2.86025,3496.2,3495.9,0.803]
[1719819968021,2.86018,3496.3,3496.1,0.803]
[1719819975218,2.3686,3496.8,3496.2,5.11321]
[1719819975445,0.22607304,3496.7,3496.6,0.803]
[1719819975652,5.2478,3497.0,3496.6,0.803]
[1719819975851,5.2478,3497.0,3496.8,0.803]
[1719819975852,0.22604439,3496.9,3496.8,0.803]
[1719819976165,2.8636,3497.0,3496.8,0.803]
[1719819976346,0.004,3497.0,3496.8,0.803]
[1719819977458,0.004,3497.0,3496.9,2.85967]
[1719819978536,0.004,3497.0,3496.9,0.803]
[1719819980049,2.4733,3496.8,3496.3,7.32]
[1719819980663,2.86008,3496.4,3496.3,7.32]
[1719819981361,2.4733,3496.8,3495.7,7.32]
[1719819981578,0.24773,3496.7,3495.9,0.803]
[1719819981732,2.8604,3496.1,3495.9,0.803]
[1719819982373,2.86041,3496.0,3495.9,0.803]
[1719819982839,2.8603,3496.2,3495.9,0.803]
[1719819983165,2.8603,3496.2,3496.1,0.803]
[1719819985752,2.85986,3496.7,3496.1,0.803]
[1719819985953,2.85998,3496.6,3496.0,2.4743]
[1719819986279,2.85998,3496.6,3496.5,0.803]
[1719819988450,2.8597,3496.9,3496.5,0.803]
[1719819988660,2.8597,3496.9,3496.8,0.803]
[1719819990047,2.8597,3496.9,3496.0,5.3347]
[1719819990293,2.85978,3496.8,3496.7,0.803]
[1719819994474,2.85978,3496.8,3496.1,10.71378]
[1719819994672,2.86361,3497.0,3496.6,0.803]
[1719819994673,2.85984,3496.7,3496.6,0.803]
[1719819995073,2.85984,3496.7,3496.1,7.85347]
[1719819995268,2.85984,3496.7,3496.5,0.803]
[1719819995886,2.85984,3496.7,3496.1,7.85347]
[1719819995887,2.85992,3496.6,3496.1,7.32]
[1719819996095,0.004,3497.0,3496.3,0.803]
[1719819996096,2.86008,3496.4,3496.3,0.803]
[1719819996264,2.86008,3496.4,3496.2,0.803]
[1719819996586,2.86008,3496.4,3496.1,7.32]
[1719819996587,2.86016,3496.3,3496.1,7.32]
[1719819997745,2.86024,3496.2,3496.1,7.32]
[1719819998687,2.86033,3496.1,3496.0,0.803]
[1719819999265,2.86016,3496.3,3496.0,0.803]
[1719819999465,2.86016,3496.3,3496.2,0.803]
[1719820003622,2.86008,3496.4,3496.2,0.803]
[1719820003838,2.86008,3496.4,3495.7,2.86064]
[1719820004041,2.86017,3496.3,3495.7,2.86064]
[1719820004236,2.86008,3496.4,3496.2,0.803]
[1719820005026,2.3934,3496.9,3495.6,2.86067]
[1719820005027,2.86016,3496.3,3495.6,2.86067]
[1719820005340,2.86016,3496.3,3495.5,10.46676356]
[1719820005341,2.86016,3496.3,3496.2,0.803]
[1719820010362,2.86043,3496.0,3495.7,3.82174336]
[1719820010573,2.86043,3496.0,3495.9,0.803]
[1719820011927,2.86031,3496.2,3495.9,0.803]
[1719820012239,2.85231,3496.2,3495.9,0.803]
[1719820012453,2.86034,3496.1,3495.9,0.803]
[1719820012826,2.86041,3496.0,3495.9,0.803]
[1719820013638,2.8603,3496.2,3495.9,0.803]
[1719820014026,2.86033,3496.1,3495.9,0.803]
[1719820021337,2.86033,3496.1,3495.5,2.86081]
[1719820021556,2.86019,3496.3,3496.0,0.803]
[1719820022866,2.2858,3496.8,3496.2,0.803]
[1719820023072,2.85992,3496.6,3496.4,0.803]
[1719820024858,5.14563,3496.8,3496.4,0.803]
[1719820025241,2.85985,3496.7,3496.4,0.803]
[1719820026264,2.85969,3496.9,3496.6,0.803]
[1719820026470,2.85969,3496.9,3496.7,0.803]
[1719820029546,0.004,3497.0,3496.7,1.11108]
[1719820029747,0.004,3497.0,3496.9,3.2726]
[1719820030286,0.004,3497.0,3496.9,6.13227]
[1719820030780,0.004,3497.0,3496.9,8.99194]
[1719820030996,0.004,3497.0,3496.9,9.921942]
[1719820033286,0.004,3497.0,3496.9,6.259272]
[1719820033902,0.004,3497.0,3496.9,1.733002]
[1719820036306,0.004,3497.0,3496.9,0.803]
[1719820038576,0.004,3497.0,3496.3,10.18013]
[1719820038577,2.86359,3497.0,3496.3,7.32]
[1719820038783,0.004,3497.0,3496.9,0.803]
[1719820039390,2.86359,3497.0,3496.8,0.803]
[1719820041535,0.004,3497.0,3496.8,0.803]
[1719820041693,0.004,3497.0,3496.8,1.17501826]
[1719820042332,2.86359,3497.0,3496.8,1.17501826]
[1719820042534,2.86359,3497.0,3496.8,0.803]
[1719820043034,0.004,3497.0,3496.8,0.803]
[1719820045157,2.81337,3497.3,3496.8,0.803]
[1719820045359,2.85951,3497.1,3497.0,0.803]
[1719820045515,2.8597,3496.9,3496.3,9.6336]
[1719820045712,2.8597,3496.9,3496.7,0.803]
[1719820045911,2.85975,3496.8,3496.7,0.803]
[1719820046756,2.85975,3496.8,3496.3,7.32]
[1719820046970,2.85975,3496.8,3496.4,0.803]
[1719820047166,2.85998,3496.6,3496.4,0.803]
[1719820047858,5.16522,3497.1,3496.4,0.803]
[1719820048027,0.516522,3497.0,3496.4,0.803]
[1719820048522,2.86,3496.5,3496.2,0.803]
[1719820049168,2.86009,3496.4,3496.2,0.803]
[1719820051383,2.86016,3496.3,3495.8,7.32]
[1719820051523,2.86009,3496.4,3496.0,0.803]
[1719820051717,2.86029,3496.2,3496.0,0.803]
[1719820051919,2.86009,3496.4,3496.0,0.803]
[1719820052121,2.86016,3496.3,3496.2,0.803]
[1719820056971,2.86016,3496.3,3495.8,7.32]
[1719820056972,2.86038,3496.1,3495.8,7.32]
[1719820057283,2.86011,3496.4,3496.0,3.2444]
[1719820057464,2.86017,3496.3,3496.2,0.803]
[1719820057828,2.86006,3496.5,3496.2,0.803]
[1719820058056,2.86006,3496.5,3496.4,0.803]
[1719820059591,2.86008,3496.4,3496.3,0.803]
[1719820064795,2.86,3496.5,3496.3,0.803]
[1719820065183,2.86008,3496.4,3496.3,0.803]
[1719820070205,2.86008,3496.4,3496.1,0.803]
[1719820070709,2.86017,3496.3,3496.1,0.803]
[1719820073189,2.86024,3496.2,3496.1,0.803]
[1719820077314,2.86024,3496.2,3495.8,7.32]
[1719820077502,2.86024,3496.2,3496.0,0.803]
[1719820082310,2.86008,3496.4,3496.0,0.803]
[1719820082612,2.86008,3496.4,3496.3,0.803]
[1719820083215,2.86017,3496.3,3496.1,0.803]
[1719820084807,2.86003,3496.5,3496.1,0.803]
[1719820084987,2.86008,3496.4,3496.1,0.803]
[1719820085318,2.86008,3496.4,3496.3,0.803]
[1719820086690,2.373,3496.9,3496.3,0.803]
[1719820086891,2.85991,3496.7,3496.5,0.803]
[1719820087123,2.85992,3496.6,3496.5,0.803]
[1719820089226,2.85992,3496.6,3496.3,0.803]
[1719820089399,2.86006,3496.5,3496.1,2.477]
[1719820089605,2.86006,3496.5,3496.2,0.803]
[1719820094537,2.86006,3496.5,3496.4,0.803]
[1719820097010,2.86006,3496.5,3496.2,0.803]
[1719820097616,2.86006,3496.5,3496.1,0.803]
[1719820097617,2.294,3496.4,3496.1,0.803]
[1719820097814,2.86016,3496.3,3496.1,0.803]
[1719820098522,2.294,3496.4,3495.5,2.3805]
[1719820098734,2.86031,3496.2,3496.0,0.803]
[1719820103576,2.86047,3496.0,3495.8,0.803]
[1719820104271,2.86047,3496.0,3495.7,0.803]
[1719820104679,2.86047,3496.0,3495.4,7.32]
[1719820104680,2.86055,3495.9,3495.4,7.32]
[1719820104847,2.86064,3495.8,3495.5,0.803]
[1719820105051,2.86064,3495.8,3495.7,0.803]
[1719820107172,2.86045,3496.0,3495.7,0.803]
[1719820107383,2.8605,3495.9,3495.7,0.803]
[1719820111337,2.86073,3495.6,3495.4,7.32]
[1719820111619,2.86073,3495.6,3495.5,0.803]
[1719820111987,2.86073,3495.6,3495.0,2.59729081]
[1719820112188,2.86063,3495.8,3495.5,0.803]
[1719820112396,2.86067,3495.7,3495.5,0.803]
[1719820115007,5.72111,3495.9,3495.5,0.803]
[1719820115206,2.86057,3495.8,3495.7,0.803]
[1719820119023,2.86066,3495.7,3495.5,0.803]
[1719820121224,2.86055,3495.9,3495.5,0.803]
[1719820121755,2.86055,3495.9,3495.7,0.803]
[1719820122859,2.86019,3496.3,3495.7,0.803]
[1719820123056,2.86019,3496.3,3496.0,0.803]
[1719820124656,2.86002,3496.5,3496.2,0.803]
[1719820124816,2.86008,3496.4,3496.2,0.803]
[1719820126554,2.85992,3496.6,3496.2,0.803]
[1719820127362,2.85977,3496.8,3496.4,0.803]
[1719820127518,2.85984,3496.7,3496.4,0.803]
[1719820128445,2.85993,3496.6,3496.4,0.803]
[1719820140165,2.86,3496.5,3496.2,0.803]
[1719820147533,2.86009,3496.4,3496.0,2.3603]
[1719820147733,2.86009,3496.4,3496.2,0.803]
[1719820151835,2.86016,3496.3,3496.2,0.803]
[1719820152041,2.86038,3496.1,3495.9,0.803]
[1719820152660,2.86038,3496.1,3495.8,0.803]
[1719820153848,5.16807,3496.3,3495.8,0.803]
[1719820154052,2.8604,3496.1,3495.4,12.4648828]
[1719820154258,2.8604,3496.1,3495.8,0.803]
[1719820155152,2.86041,3496.0,3495.8,0.803]
[1719820156538,2.86024,3496.2,3495.8,0.803]
[1719820157847,2.86042,3496.0,3495.8,0.803]
[1719820159148,2.86049,3495.9,3495.4,0.2948828]
[1719820159348,2.86049,3495.9,3495.8,0.803]
[1719820168240,2.86088,3495.5,3495.3,7.32]
[1719820168415,2.86088,3495.5,3495.3,8.123]
[1719820168606,2.8609,3495.4,3495.3,0.803]
[1719820169521,2.86069,3495.7,3495.3,0.803]
[1719820169719,2.86083,3495.5,3495.1,2.4498]
[1719820169920,2.86083,3495.5,3495.4,0.803]
[1719820172113,2.86069,3495.7,3495.4,0.803]
[1719820172300,2.86052,3495.9,3495.6,0.803]
[1719820172501,2.86052,3495.9,3495.8,0.803]
[1719820174311,2.86059,3495.8,3495.6,0.803]
[1719820175546,2.86055,3495.9,3495.6,0.803]
[1719820177706,2.86033,3496.1,3495.6,0.803]
[1719820178755,2.86043,3496.0,3495.6,0.803]
[1719820189549,2.8605,3495.9,3495.6,0.803]
[1719820189750,2.8605,3495.9,3495.5,2.4918]
[1719820189950,2.86057,3495.8,3495.0,10.18119]
[1719820190156,2.86057,3495.8,3495.5,0.803]
[1719820192823,2.86066,3495.7,3495.5,0.803]
[1719820193361,2.86073,3495.6,3495.5,0.803]
[1719820193531,2.86099,3495.3,3495.0,7.32]
[1719820193859,2.86099,3495.3,3495.0,0.803]
[1719820195116,2.86099,3495.3,3494.8,2.4131]
[1719820195315,2.86099,3495.3,3495.1,0.803]
[1719820197236,2.86131,3494.9,3494.6,2.4279]
[1719820197463,2.86131,3494.9,3494.6,0.803]
[1719820197702,2.86131,3494.9,3494.8,0.803]
[1719820198555,2.86144,3494.8,3494.6,0.803]
[1719820198862,2.86147,3494.7,3494.6,0.803]
[1719820200403,2.86147,3494.7,3494.5,7.32]
[1719820201356,5.18952,3494.9,3493.9,2.4631]
[1719820201357,2.86188,3494.2,3493.9,2.4631]
[1719820201690,2.86166,3494.5,3493.9,2.4631]
[1719820201691,2.86177,3494.4,3494.1,0.803]
[1719820201854,2.86177,3494.4,3494.3,0.803]
[1719820205979,2.86177,3494.4,3493.9,2.4631]
[1719820206327,2.86177,3494.4,3494.3,0.803]
[1719820208806,2.86193,3494.2,3493.7,2.2708]
[1719820209009,2.86174,3494.4,3494.2,0.803]
[1719820209580,2.8621,3494.0,3493.5,2.3105]
[1719820209776,2.8621,3494.0,3493.9,0.803]
[1719820210443,2.8621,3494.0,3493.5,2.3105]
[1719820210651,2.8621,3494.0,3493.9,0.803]
[1719820212720,2.86174,3494.4,3493.9,0.803]
[1719820212935,2.3872,3494.5,3494.2,0.803]
[1719820212936,2.8618,3494.3,3494.2,0.803]
[1719820220952,2.86207,3494.0,3493.8,0.803]
[1719820221279,5.21161,3494.2,3493.8,0.803]
[1719820221768,2.86211,3494.0,3493.8,0.803]
[1719820222752,2.86213,3493.9,3493.8,0.803]
[1719820224648,2.86213,3493.9,3493.4,9.637]
[1719820225007,2.86213,3493.9,3493.8,0.803]
[1719820225264,2.86227,3493.8,3493.1,2.2532]
[1719820225432,2.86246,3493.5,3493.1,2.2532]
[1719820225635,2.86246,3493.5,3493.4,0.803]
[1719820228328,2.86246,3493.5,3493.0,7.32]
[1719820228527,5.72491,3493.5,3493.4,0.803]
[1719820228756,2.4723,3493.7,3493.3,0.803]
[1719820228966,2.86254,3493.4,3493.3,0.803]
[1719820229271,2.86263,3493.3,3493.0,7.32]
[1719820229477,2.86263,3493.3,3493.2,0.803]
[1719820232754,2.86246,3493.5,3493.2,0.803]
[1719820232954,2.86246,3493.5,3493.4,0.803]
[1719820233959,2.86254,3493.4,3492.9,2.65786771]
[1719820234261,2.8624,3493.6,3492.9,2.65786771]
[1719820234262,2.86262,3493.3,3492.9,2.65786771]
[1719820234469,2.86262,3493.3,3493.2,0.803]
[1719820236192,2.8624,3493.6,3493.2,0.803]
[1719820236400,2.8624,3493.6,3493.5,0.803]
[1719820237188,5.7248,3493.6,3493.5,0.803]
[1719820240303,2.8624,3493.6,3492.9,2.3672]
[1719820240494,2.86259,3493.4,3493.3,0.803]
[1719820240878,2.86262,3493.3,3492.6,2.419]
[1719820241077,2.86291,3493.0,3492.6,2.419]
[1719820241278,2.86291,3493.0,3492.9,0.803]
[1719820242300,2.86297,3492.9,3492.6,2.419]
[1719820242480,2.86297,3492.9,3492.8,0.803]
[1719820246878,2.86305,3492.8,3492.4,2.65909052]
[1719820247093,2.86305,3492.8,3492.7,0.803]
[1719820264262,2.86268,3493.3,3492.8,2.2714]
[1719820264565,2.86268,3493.3,3493.2,0.803]
[1719820265586,2.86246,3493.5,3493.2,0.803]
[1719820265721,2.86246,3493.5,3493.4,0.803]
[1719820266444,5.72498,3493.5,3493.4,0.803]
[1719820268461,2.86246,3493.5,3493.4,0.803]
[1719820272775,2.86277,3493.2,3492.6,9.655]
[1719820272955,2.86277,3493.2,3492.6,2.335]
[1719820273160,2.86277,3493.2,3493.0,0.803]
[1719820273669,2.86277,3493.2,3492.6,2.335]
[1719820273889,2.86292,3493.0,3492.4,2.4458]
[1719820274172,2.86292,3493.0,3492.9,0.803]
[1719820277027,2.86292,3493.0,3492.4,2.4458]
[1719820277267,2.86296,3492.9,3492.4,4.02356586]
[1719820277440,2.86296,3492.9,3492.8,0.803]
[1719820279954,2.4389,3493.3,3492.8,0.803]
[1719820280186,2.86287,3493.0,3492.4,4.02356586]
[1719820280371,2.86287,3493.0,3492.9,0.803]
[1719820282376,2.86287,3493.0,3492.4,4.02356586]
[1719820282577,2.86287,3493.0,3492.9,0.803]
[1719820291166,2.86295,3492.9,3492.8,0.803]
[1719820292205,2.86295,3492.9,3492.4,2.4458]
[1719820292402,2.86303,3492.8,3492.4,2.4458]
[1719820292603,2.86303,3492.8,3492.7,0.803]
[1719820295616,2.86287,3493.0,3492.7,0.803]
[1719820295936,2.86287,3493.0,3492.4,2.4458]
[1719820295937,2.86286,3493.0,3492.9,0.803]
[1719820304172,3.665,3494.1,3492.9,0.803]
[1719820304173,2.86252,3493.5,3492.9,0.803]
[1719820304379,0.22645133,3493.4,3493.1,0.803]
[1719820304570,2.86263,3493.3,3493.1,0.803]
[1719820305630,2.8627,3493.2,3493.1,0.803]
[1719820306528,2.86284,3493.1,3492.7,2.4106]
[1719820306727,2.86284,3493.1,3492.9,0.803]
[1719820312836,2.86286,3493.0,3492.9,0.803]
[1719820317463,2.86297,3492.9,3492.2,12.77054321]
[1719820317778,2.86297,3492.9,3492.7,0.803]
[1719820318676,2.86303,3492.8,3492.7,0.803]
[1719820319043,2.86297,3492.9,3492.6,0.803]
[1719820319044,2.86311,3492.7,3492.6,0.803]
[1719820322497,2.86297,3492.9,3492.6,0.803]
[1719820322649,2.86297,3492.9,3492.8,0.803]
[1719820324851,2.8628,3493.1,3492.8,0.803]
[1719820325055,2.8628,3493.1,3493.0,0.803]
[1719820326683,2.86293,3493.0,3492.5,2.4589]
[1719820326891,2.86293,3493.0,3492.9,0.803]
[1719820329806,2.86271,3493.2,3492.9,0.803]
[1719820329979,2.86271,3493.2,3493.1,0.803]
[1719820330182,3.08916564,3493.2,3493.1,0.803]
[1719820330800,3.08915564,3493.2,3493.1,0.803]
[1719820331684,2.86267,3493.3,3493.1,0.803]
[1719820331883,2.86267,3493.3,3493.2,0.803]
[1719820338203,5.11398,3493.6,3493.2,0.803]
[1719820338397,3.08883893,3493.5,3493.4,0.803]
[1719820338787,2.86245,3493.5,3493.4,0.803]
[1719820340528,2.4682,3494.1,3493.4,0.803]
[1719820340728,0.20816957,3493.9,3493.3,2.4276]
[1719820340890,0.20816957,3493.8,3493.3,2.86261]
[1719820341098,0.20816957,3493.8,3493.1,5.31538]
[1719820341099,0.20816957,3493.7,3493.1,5.31538]
[1719820341288,2.86221,3493.8,3493.7,0.803]
[1719820341495,3.07037829,3493.8,3493.7,0.803]
[1719820341923,0.20816829,3493.8,3493.7,0.803]
[1719820346216,3.07037917,3493.8,3493.7,0.803]
[1719820348606,3.07037917,3493.8,3492.9,2.86292]
[1719820348607,2.86249,3493.5,3492.9,2.3758]
[1719820348810,2.86249,3493.5,3493.4,0.803]
[1719820354321,2.86258,3493.4,3492.9,2.3758]
[1719820354526,2.86258,3493.4,3493.3,0.803]
[1719820354734,2.86262,3493.3,3492.7,2.4262]
[1719820355022,2.86262,3493.3,3493.1,0.803]
[1719820355023,2.8627,3493.2,3493.1,0.803]
[1719820355227,2.8627,3493.2,3492.7,2.4262]
[1719820355464,2.8627,3493.2,3493.1,0.803]
[1719820367940,3.66489,3494.2,3492.5,0.29184605]
[1719820367941,2.86283,3493.1,3492.5,2.2694]
[1719820368148,2.86283,3493.1,3493.0,0.803]
[1719820369743,2.86283,3493.1,3492.5,2.2694]
[1719820369953,2.86283,3493.1,3493.0,0.803]
[1719820371493,2.86293,3493.0,3492.5,2.2694]
[1719820371643,2.86293,3493.0,3492.9,0.803]
[1719820374292,2.86295,3492.9,3492.3,5.18049]
[1719820374599,2.86295,3492.9,3492.8,0.803]
[1719820376660,2.86305,3492.8,3492.3,2.60565805]
[1719820376861,2.86305,3492.8,3492.7,0.803]
[1719820377658,2.86305,3492.8,3492.0,2.4742]
[1719820377659,2.86338,3492.4,3492.0,2.4742]
[1719820377857,2.86326,3492.6,3492.3,0.803]
[1719820378103,2.86328,3492.5,3492.0,2.4742]
[1719820378291,2.86328,3492.5,3492.4,0.803]
[1719820379784,2.86317,3492.7,3492.4,0.803]
[1719820379982,2.86317,3492.7,3492.6,0.803]
[1719820382996,2.86319,3492.6,3492.5,0.803]
[1719820383388,2.86328,3492.5,3492.0,2.4742]
[1719820383581,2.86328,3492.5,3492.1,0.533796]
[1719820383909,2.86328,3492.5,3492.4,0.803]
[1719820384587,2.86337,3492.4,3492.1,0.533796]
[1719820384841,2.86337,3492.4,3492.3,0.803]
[1719820385335,5.20277,3492.4,3492.3,0.803]
[1719820385544,5.20277,3492.4,3491.7,2.86392]
[1719820385685,2.86337,3492.4,3491.7,2.4653]
[1719820385890,2.86337,3492.4,3492.1,0.803]
[1719820386825,2.8636,3492.2,3492.1,0.803]
[1719820387024,2.3394,3492.5,3491.7,2.4653]
[1719820387025,2.86365,3492.1,3491.7,2.4653]
[1719820387326,2.86344,3492.3,3491.7,2.4653]
[1719820387327,2.86344,3492.3,3492.0,0.803]
[1719820387531,2.86344,3492.3,3491.7,2.4653]
[1719820387532,2.86344,3492.3,3492.2,0.803]
[1719820388829,2.86344,3492.3,3491.6,2.864]
[1719820389011,2.86344,3492.3,3492.2,0.803]
[1719820397102,5.19708,3492.5,3492.0,0.803]
[1719820397103,2.86352,3492.2,3492.0,0.803]
[1719820399003,2.3338,3492.5,3492.0,0.803]
[1719820399201,2.3338,3492.5,3492.2,0.803]
[1719820404830,2.3338,3492.5,3492.0,2.86368]
[1719820405148,2.3338,3492.5,3492.1,0.803]
[1719820406354,2.3338,3492.5,3492.3,0.803]
[1719820409725,5.19708,3492.5,3492.3,0.803]
[1719820411354,2.86336,3492.4,3492.3,0.803]
[1719820411663,2.86336,3492.4,3492.1,0.803]
[1719820411967,2.86344,3492.3,3492.1,0.803]
[1719820412670,2.86352,3492.2,3492.1,0.803]
[1719820415849,2.86352,3492.2,3491.7,2.4053]
[1719820416145,2.86352,3492.2,3492.1,0.803]
[1719820418782,2.86352,3492.2,3491.7,3.69282476]
[1719820419081,2.86352,3492.2,3492.1,0.803]
[1719820423867,5.19708,3492.5,3492.1,0.803]
[1719820424076,2.3338,3492.5,3492.1,0.803]
[1719820424388,2.3338,3492.5,3492.3,0.803]
[1719820425280,5.32792,3492.7,3492.1,0.803]
[1719820425492,0.2082382,3492.6,3492.3,0.803]
[1719820425711,0.2082382,3492.5,3492.3,0.803]
[1719820425886,5.32791,3492.7,3492.3,0.803]
[1719820426086,0.20823809,3492.6,3492.3,0.803]
[1719820426384,0.20823809,3492.5,3492.3,0.803]
[1719820426585,5.32791,3492.7,3492.3,0.803]
[1719820426759,0.20823815,3492.6,3492.3,0.803]
[1719820426965,0.20823815,3492.5,3492.3,0.803]
[1719820427159,5.32791,3492.7,3492.3,0.803]
[1719820427363,0.20823826,3492.6,3492.3,0.803]
[1719820427564,0.20823826,3492.5,3492.3,0.803]
[1719820427883,5.32791,3492.7,3492.3,0.803]
[1719820428080,0.20823804,3492.6,3492.3,0.803]
[1719820428402,0.20823804,3492.5,3492.3,0.803]
[1719820428559,5.32791,3492.7,3492.3,0.803]
[1719820428759,0.20823779,3492.6,3492.5,0.803]
[1719820428958,0.20823779,3492.6,3492.3,2.86341]
[1719820428959,0.20823779,3492.6,3492.3,3.66641]
[1719820429156,2.4578,3492.8,3492.3,3.66641]
[1719820429361,0.20823553,3492.7,3492.3,3.66641]
[1719820429570,0.20823553,3492.6,3492.3,3.66641]
[1719820429770,2.4578,3492.8,3492.3,3.66641]
[1719820429966,0.20823547,3492.7,3492.3,3.66641]
[1719820430204,0.20823547,3492.6,3492.3,3.66641]
[1719820430402,2.4578,3492.8,3492.3,3.66641]
[1719820430724,0.20823559,3492.7,3492.3,3.66643]
[1719820430879,2.4578,3492.8,3492.3,3.66643]
[1719820431071,0.20822486,3492.7,3492.3,3.66643]
[1719820431277,2.4578,3492.8,3492.3,3.66643]
[1719820431503,0.20822489,3492.7,3492.3,3.66643]
[1719820431704,2.4578,3492.8,3492.3,3.66643]
[1719820432031,0.20822484,3492.7,3492.3,3.66643]
[1719820432322,2.4578,3492.8,3492.3,3.66643]
[1719820432522,0.20822485,3492.7,3492.3,3.66643]
[1719820432715,2.4578,3492.8,3492.3,3.66643]
[1719820433020,0.20822484,3492.7,3492.3,3.66643]
[1719820433322,2.4578,3492.8,3492.3,3.66643]
[1719820433523,0.20822484,3492.7,3492.3,3.66643]
[1719820433821,5.436,3493.5,3492.8,2.4215]
[1719820434020,0.20819723,3493.4,3492.8,2.4215]
[1719820434221,8.29845,3493.5,3493.3,0.803]